Workbook

Sheet Sheet1
A1: INSTRUCTIONS: Use this form when a single information collection document involves multiple reporting and recordkeeping requirements. The totals of the figures in cols. should be entered in item 13 of OMB-83-I: cols. (D) &/or (I) = 13a (respondent is only counted once); cols. F & I = 13b; cols. H & K = 13c. (F)Total/(D)Total = (E)Average (H)Total/(F)Total = (G)Average (K)Total/(I)Total = (J)Average NOTE: The columns will calculate automatically. If Col. E's response is something other than annually, i.e., 1/6 years, list as "1/6" & decimal will display. | I1: TITLE OF INFORMATION COLLECTION DOCUMENT | O1: OMB NO. | P1: 0560-NEW
I3: CFAP
O4: DATE PREPARED
O5: 2021-01-11
A10: IDENTIFICATION OF REPORTING OR RECORDKEEPING REQUIREMENT | H10: ANNUAL BURDEN
H12: REPORTS | N12: RECORDS | Q12: RESPONDENT COST
L14: TOTAL BURDEN HOURS | P14: TOTAL
G15: FORMS NO (S) | H15: NO. OF | I15: NO OF | J15: TOTAL ANNUAL | K15: HOURS | L15: (Col. F x G) | N15: NO. OF | O15: ANNUAL | P15: RECORD- | Q15: COST | R15: TOTAL
A16: SECTION OF | B16: DESCRIPTION | G16: (If "none" | H16: RESPONDENTS | I16: RESPONSES | J16: RESPONSES | K16: PER | L16: (H) | N16: RECORD- | O16: HOURS PER | P16: KEEPING HOURS | Q16: PER | R16: COST
A17: REGS. | G17: so state) | I17: PER | J17: (Col. D x E) | K17: RESPONSE | N17: KEEPERS | O17: RECORD- | P17: (Col. I x J) | Q17: HOUR | R17: (Col. H x L)
I18: RESPONDENT | L18: EXEMPT | M18: NON-EXEMPT | O18: KEEPER
A19: (A) | B19: (B) | G19: (C) | H19: (D) | I19: (E) | J19: (F) | K19: (G) | N19: (I) | O19: (J) | P19: (K) | Q19: (L) | R19: (M)
A20: 7 CFR part 9 | B20: Coronavirus Food Assistance Program 2 (CFAP 2) Application | G20: AD-3117 | H20: 57,950 | I20: 1 | J20: =SUM(H20*I20) -> 57,950 | K20: =45/60 -> 0.75 | M20: =SUM(J20*K20) -> 43,463 | Q20: $53.71 | R20: =SUM(M20*Q20) -> 2,334,371
A21: 7 CFR part 1400 | B21: Farm Operating Plan for an Individual (Parts A & B) | G21: CCC-902I | H21: =H20*0.4 -> 23,180 | I21: 1 | J21: 23,180 | K21: =5/60 -> 0.08 | M21: 1,932 | Q21: $53.71 | R21: 103,750
A22: 7 CFR part 1400 | B22: Farm Operating Plan for an Entity (Parts A & B) | G22: CCC-902E | H22: =H20*0.4 -> 23,180 | I22: 1 | J22: 23,180 | K22: =5/60 -> 0.08 | M22: 1,932 | Q22: $53.71 | R22: 103,750
A23: 7 CFR part 1400 | B23: Average Adjusted Gross Income (AGI) Certification and Consent to Disclosure of Tax Information | G23: CCC-941 | H23: =H20*0.1 -> 5,795 | I23: 1 | J23: 5,795 | K23: =15/60 -> 0.25 | M23: 1,449 | Q23: $53.71 | R23: 77,812
A24: 7 CFR part 1400 | B24: Certification of Income From Farming, Ranching and Forestry Operations, optional | G24: CCC-942 | H24: =H20*0.05 -> 2,898 | I24: 1 | J24: =SUM(H24*I24) -> 2,898 | K24: =15/60 -> 0.25 | M24: 724 | Q24: $53.71 | R24: 38,906
A25: 7 CFR part 1400 | B25: Member Information for Legal Entities, if applicable | G25: CCC-901 | H25: =H20*0.05 -> 2,898 | I25: 1 | J25: 2,898 | K25: =5/60 -> 0.08 | M25: =SUM(J25*K25) -> 241 | Q25: $53.71 | R25: =SUM(M25*Q25) -> 12,969
A26: 7 CFR part 2 | B26: Highly Erodible Land Conservation (HELC) and Wetland Conservation Certification (exempt from PRA 16 U.S.C. 3846) | G26: AD-1026 | H26: =H20*0.005 -> 290 | I26: 1 | J26: 290 | K26: =5/60 -> 0.08 | L26: 24 | Q26: $53.71 | R26: 0
A27: 7 CFR Part 718 & 7 CFR Part 1437 | B27: Report of Acreage | G27: FSA-578 | H27: =H20*0.05 -> 2,898 | I27: 1 | J27: 2,898 | K27: 0.50 | L27: 1,449 | Q27: $53.71 | R27: 0
A28: 7 CFR 9 | B28: Coronavirus Food Assistance Program 2 (CFAP 2) Application - updating in response to rule changes | G28: AD-3117 | H28: 44,600 | I28: 1 | J28: 44,600 | K28: 0.08 | M28: =SUM(J28*K28) -> 3,568 | Q28: $53.71 | R28: =SUM(M24*Q24) -> 38,906
B29: Notification to the County offices to recalculate payment in response to rule changes | H29: 101,000 | I29: 1 | J29: 101,000 | K29: 0.02 | M29: =SUM(J29*K29) -> 1,717 | Q29: $53.71 | R29: =SUM(M29*Q24) -> 92,220
B33: SUBTOTAL | J33: 291,179 | L33: =SUM(L20:L27) -> 1,473 | M33: 49,385 | P33: =SUM(P20:P32) -> 0.00 | R33: =SUM(R20:R32) -> 2,802,684
B34: TOTAL OF ALL PAGES | J34: =SUM(J33) -> 291,179 | L34: =SUM(L33) -> 1,473 | M34: =SUM(M33) -> 49,385 | P34: =SUM(P33) -> 0.00 | R34: =SUM(R33) -> 2,802,684
A35: TOTAL - COLUMNS "F" AND "I" = OMB 83-I, 13b; COLUMNS "H" AND "K" = OMB 83-I, 13c | J35: =SUM(J34+N34) -> 291,179 | M35: =SUM(M34+P34) -> 49,385
